fUSD/lending_fUSD_20251031
["ID","MTS","AMOUNT","RATE_DAILY","PERIOD"]
[392749766,1761906368989,-500.0,0.00031232,120]
[392749767,1761906369043,-500.0,0.00031232,120]
[392749768,1761906369094,-500.0,0.00031232,120]
[392749769,1761906369147,-500.0,0.00031232,120]
[392749770,1761906369195,-500.0,0.00031232,120]
[392749771,1761906369241,-500.0,0.00031232,120]
[392749772,1761906369289,-500.0,0.00031232,120]
[392749773,1761906369336,-500.0,0.00031232,120]
[392749774,1761906369382,-500.0,0.00031232,120]
[392749775,1761906369430,-500.0,0.00031232,120]
[392749776,1761906369476,-556.94303939,0.00031232,120]
[392749777,1761906369524,-500.0,0.00031232,120]
[392749778,1761906369579,-500.0,0.00031232,120]
[392749779,1761906369631,-500.0,0.00031232,120]
[392749780,1761906369684,-500.0,0.00031232,120]
[392749781,1761906369737,-500.0,0.00031232,120]
[392749782,1761906369788,-500.0,0.00031232,120]
[392749783,1761906369838,-500.0,0.00031232,120]
[392749784,1761906369889,-500.0,0.00031232,120]
[392749785,1761906369938,-500.0,0.00031232,120]
[392749786,1761906369988,-500.0,0.00031232,120]
[392749787,1761906370038,-1000.0,0.00031232,120]
[392749788,1761906370087,-400.0,0.00031232,120]
[392749789,1761906370136,-606.25033913,0.00031506,120]
[392749790,1761906370184,-500.0,0.00031506,120]
[392749791,1761906370230,-500.0,0.00031506,120]
[392749792,1761906370276,-500.0,0.00031506,120]
[392749793,1761906370322,-500.0,0.00031506,120]
[392749794,1761906370368,-500.0,0.00031506,120]
[392749795,1761906370430,-300.0,0.00031506,120]
[392749796,1761906370479,-500.0,0.00031506,120]
[392749797,1761906370527,-316.60530267,0.00031506,120]
[392749798,1761906370574,-500.0,0.00031506,120]
[392749799,1761906370623,-311.27404061,0.00031506,120]
[392749800,1761906370674,-639.78,0.00031506,120]
[392749801,1761906370722,-500.0,0.00031506,120]
[392749802,1761906370772,-582.15542322,0.00031506,120]
[392749803,1761906370821,-500.0,0.00031506,120]
[392749804,1761906370868,-503.91,0.00031506,120]
[392749805,1761906370915,-945.77,0.00031506,120]
[392749806,1761906370962,-500.0,0.00031506,120]
[392749807,1761906371010,-500.04950306,0.00031506,120]
[392749808,1761906371059,-500.0,0.00031506,120]
[392749809,1761906371106,-500.0,0.00031506,120]
[392749810,1761906371156,-500.0,0.00031506,120]
[392749811,1761906371203,-429.90525054,0.00031506,120]
[392749812,1761906371252,-535.60638477,0.00031506,120]
[392749813,1761906371301,-500.0,0.00031506,120]
[392749814,1761906371348,-500.0,0.00031506,120]
[392749815,1761906371395,-500.0,0.00031506,120]
[392749816,1761906371444,-500.0,0.00031506,120]
[392749817,1761906371493,-507.43,0.00031506,120]
[392749818,1761906371546,-500.0,0.00031506,120]
[392749819,1761906371596,-500.0,0.00031506,120]
[392749820,1761906371880,-500.0,0.00031506,120]
[392749821,1761906371933,-500.0,0.00031506,120]
[392749822,1761906371983,-546.14916603,0.00031506,120]
[392749823,1761906372036,-500.0,0.00031506,120]
[392749824,1761906372084,-500.0,0.00031506,120]
[392749825,1761906372129,-500.0,0.00031506,120]
[392749826,1761906372173,-500.0,0.00031506,120]
[392749827,1761906372218,-500.0,0.00031506,120]
[392749828,1761906372260,-500.0,0.00031506,120]
[392749829,1761906372304,-500.0,0.00031506,120]
[392749830,1761906372349,-500.0,0.00031506,120]
[392749831,1761906372393,-500.0,0.00031506,120]
[392749832,1761906372435,-648.3,0.00031506,120]
[392749833,1761906372479,-500.0,0.00031506,120]
[392749834,1761906372522,-500.0,0.00031506,120]
[392749835,1761906372566,-500.0,0.00031506,120]
[392749836,1761906372616,-500.0,0.00031506,120]
[392749837,1761906372666,-673.96,0.00031506,120]
[392749838,1761906372712,-1148.64,0.00031506,120]
[392749839,1761906372758,-500.0,0.00031506,120]
[392749840,1761906372802,-500.0,0.00031506,120]
[392749841,1761906372847,-500.0,0.00031506,120]
[392749842,1761906372891,-500.0,0.00031506,120]
[392749843,1761906372932,-500.0,0.00031506,120]
[392749844,1761906372976,-500.0,0.00031506,120]
[392749845,1761906373020,-254.05230956,0.00031506,120]
[392749846,1761906373063,-621.71,0.00031506,120]
[392749847,1761906373105,-500.0,0.00031506,120]
[392749848,1761906373147,-500.0,0.00031506,120]
[392749849,1761906373191,-529.26536807,0.00031506,120]
[392749850,1761906373233,-500.0,0.00031506,120]
[392749851,1761906373276,-500.0,0.00031506,120]
[392749852,1761906373319,-500.0,0.00031506,120]
[392749853,1761906373362,-500.0,0.00031506,120]
[392749854,1761906373403,-500.0,0.00031506,120]
[392749855,1761906373448,-500.0,0.00031506,120]
[392749856,1761906373494,-500.0,0.00031506,120]
[392749857,1761906373541,-500.0,0.00031506,120]
[392749858,1761906373589,-500.0,0.00031506,120]
[392749859,1761906373636,-500.0,0.00031506,120]
[392749860,1761906373684,-500.0,0.00031506,120]
[392749861,1761906373731,-500.0,0.00031506,120]
[392749862,1761906373781,-500.0,0.00031506,120]
[392749863,1761906373827,-500.0,0.00031506,120]
[392749864,1761906373873,-182.60609323,0.00031506,120]
[392749865,1761906373920,-500.0,0.00031506,120]
[392749866,1761906373969,-620.33612508,0.00031506,120]
[392749867,1761906374017,-500.0,0.00031506,120]
[392749868,1761906374064,-500.0,0.00031506,120]
[392749869,1761906374111,-500.0,0.00031506,120]
[392749870,1761906374156,-500.0,0.00031506,120]
[392749871,1761906374205,-500.0,0.00031506,120]
[392749872,1761906374252,-500.0,0.00031506,120]
[392749873,1761906374295,-582.89700505,0.00031506,120]
[392749874,1761906374339,-500.0,0.00031506,120]
[392749875,1761906374384,-500.0,0.00031506,120]
[392749876,1761906374430,-500.0,0.00031506,120]
[392749877,1761906374474,-500.0,0.00031506,120]
[392749878,1761906374518,-500.0,0.00031506,120]
[392749879,1761906374562,-500.0,0.00031506,120]
[392749880,1761906374607,-500.0,0.00031506,120]
[392749881,1761906374652,-533.81,0.00031506,120]
[392749882,1761906374708,-500.0,0.00031506,120]
[392749883,1761906374758,-500.0,0.00031506,120]
[392749884,1761906374806,-500.0,0.00031506,120]
[392749885,1761906374855,-500.0,0.00031506,120]
[392749886,1761906374904,-500.0,0.00031506,120]
[392749887,1761906374952,-500.0,0.00031506,120]
[392749888,1761906375002,-500.0,0.00031506,120]
[392749889,1761906375050,-500.0,0.00031506,120]
[392749890,1761906375096,-631.80262656,0.00031506,120]
[392749891,1761906375142,-370.26,0.00031506,120]
[392749892,1761906375189,-500.0,0.00031506,120]
[392749893,1761906375233,-500.0,0.00031506,120]
[392749894,1761906375277,-500.0,0.00031506,120]
[392749895,1761906375321,-500.0,0.00031506,120]
[392749896,1761906375365,-410.82278807,0.00031506,120]
[392749897,1761906375410,-500.0,0.00031506,120]
[392749898,1761906375453,-500.0,0.00031506,120]
[392749899,1761906375496,-492.20650166,0.00031506,120]
[392749900,1761906375541,-500.0,0.00031506,120]
[392749901,1761906375586,-500.0,0.00031506,120]
[392749902,1761906375633,-500.0,0.00031506,120]
[392749903,1761906375678,-500.0,0.00031506,120]
[392749904,1761906375725,-500.0,0.00031506,120]
[392749905,1761906375768,-500.0,0.00031506,120]
[392749906,1761906375812,-500.0,0.00031506,120]
[392749907,1761906375855,-500.0,0.00031506,120]
[392749908,1761906375899,-557.39760439,0.00031506,120]
[392749909,1761906375944,-338.61002583,0.00031506,120]
[392749910,1761906375988,-500.0,0.00031506,120]
[392749911,1761906376034,-500.0,0.00031506,120]
[392749912,1761906376076,-500.0,0.00031506,120]
[392749913,1761906376120,-500.0,0.00031506,120]
[392749914,1761906376163,-500.0,0.00031506,120]
[392749915,1761906376207,-500.0,0.00031506,120]
[392749916,1761906376251,-500.0,0.00031506,120]
[392749917,1761906376294,-500.0,0.00031506,120]
[392749918,1761906376337,-339.5820726,0.00031506,120]
[392749919,1761906376380,-500.0,0.00031506,120]
[392749920,1761906376423,-500.0,0.00031506,120]
[392749921,1761906376466,-500.0,0.00031506,120]
[392749922,1761906376512,-500.0,0.00031506,120]
[392749923,1761906376710,-1305.34,0.00031506,120]
[392749924,1761906376770,-500.0,0.00031506,120]
[392749925,1761906376818,-661.67,0.00031506,120]
[392749926,1761906376867,-500.0,0.00031506,120]
[392749927,1761906376917,-500.0,0.00031506,120]
[392749928,1761906376964,-173.58157987,0.00031506,120]
[392749929,1761906377011,-500.0,0.00031506,120]
[392749930,1761906377057,-500.0,0.00031506,120]
[392749931,1761906377101,-500.0,0.00031506,120]
[392749932,1761906377146,-500.0,0.00031506,120]
[392749933,1761906377187,-500.0,0.00031506,120]
[392749934,1761906377236,-500.0,0.00031506,120]
[392749935,1761906377281,-500.0,0.00031506,120]
[392749936,1761906377325,-500.0,0.00031506,120]
[392749937,1761906377368,-500.0,0.00031506,120]
[392749938,1761906377414,-500.0,0.00031506,120]
[392749939,1761906377460,-1567.08,0.00031506,120]
[392749940,1761906377505,-500.0,0.00031506,120]
[392749941,1761906377549,-500.0,0.00031506,120]
[392749942,1761906377592,-500.0,0.00031506,120]
[392749943,1761906377639,-500.0,0.00031506,120]
[392749944,1761906377685,-500.0,0.00031506,120]
[392749945,1761906377733,-500.0,0.00031506,120]
[392749946,1761906377778,-500.0,0.00031506,120]
[392749947,1761906377820,-500.0,0.00031506,120]
[392749948,1761906377865,-500.0,0.00031506,120]
[392749949,1761906377911,-500.0,0.00031506,120]
[392749950,1761906377954,-500.0,0.00031506,120]
[392749951,1761906377999,-500.0,0.00031506,120]
[392749952,1761906378043,-500.0,0.00031506,120]
[392749953,1761906378085,-500.0,0.00031506,120]
[392749954,1761906378126,-500.0,0.00031506,120]
[392749955,1761906378168,-500.0,0.00031506,120]
[392749956,1761906378212,-428.69964886,0.00031506,120]
[392749957,1761906378257,-675.43,0.00031506,120]
[392749958,1761906378303,-500.0,0.00031506,120]
[392749959,1761906378348,-500.0,0.00031506,120]
[392749960,1761906378394,-500.0,0.00031506,120]
[392749961,1761906378440,-500.0,0.00031506,120]
[392749962,1761906378489,-500.0,0.00031506,120]
[392749963,1761906378535,-524.17,0.00031506,120]
[392749964,1761906378581,-500.0,0.00031506,120]
[392749965,1761906378625,-500.0,0.00031506,120]
[392749966,1761906378668,-500.0,0.00031506,120]
[392749967,1761906378713,-500.0,0.00031506,120]
[392749968,1761906378757,-515.21,0.00031506,120]
[392749969,1761906378799,-500.0,0.00031506,120]
[392749970,1761906378841,-500.0,0.00031506,120]
[392749971,1761906378884,-500.0,0.00031506,120]
[392749972,1761906378926,-500.0,0.00031506,120]
[392749973,1761906378968,-500.0,0.00031506,120]
[392749974,1761906379010,-585.0,0.00031506,120]
[392749975,1761906379051,-500.0,0.00031506,120]
[392749976,1761906379093,-500.02854124,0.00031506,120]
[392749977,1761906379137,-500.0,0.00031506,120]
[392749978,1761906379188,-500.0,0.00031506,120]
[392749979,1761906379238,-500.0,0.00031506,120]
[392749980,1761906379284,-696.95,0.00031506,120]
[392749981,1761906379331,-500.0,0.00031506,120]
[392749982,1761906379377,-500.0,0.00031506,120]
[392749983,1761906379425,-500.0,0.00031506,120]
[392749984,1761906379471,-782.35,0.00031506,120]
[392749985,1761906379519,-500.0,0.00031506,120]
[392749986,1761906379566,-500.0,0.00031506,120]
[392749987,1761906379615,-500.0,0.00031506,120]
[392749988,1761906379668,-500.0,0.00031506,120]
[392749989,1761906379716,-500.0,0.00031506,120]
[392749990,1761906379766,-500.0,0.00031506,120]
[392749991,1761906379823,-500.0,0.00031506,120]
[392749992,1761906379872,-500.0,0.00031506,120]
[392749993,1761906379922,-500.0,0.00031506,120]
[392749994,1761906379969,-500.0,0.00031506,120]
[392749995,1761906380015,-11669.75,0.00031506,120]
[392749996,1761906380058,-500.0,0.00031506,120]
[392749997,1761906380101,-500.0,0.00031506,120]
[392749998,1761906380145,-500.0,0.00031506,120]
[392749999,1761906380187,-500.0,0.00031506,120]
[392750000,1761906380229,-500.0,0.00031506,120]
[392750001,1761906380274,-500.0,0.00031506,120]
[392750002,1761906380316,-501.90540606,0.00031506,120]
[392750003,1761906380360,-500.0,0.00031506,120]
[392750004,1761906380404,-500.0,0.00031506,120]
[392750005,1761906380449,-500.0,0.00031506,120]
[392750006,1761906380497,-500.0,0.00031506,120]
[392750007,1761906380550,-500.0,0.00031506,120]
[392750008,1761906380604,-500.0,0.00031506,120]
[392750009,1761906380650,-556.1,0.00031506,120]
[392750010,1761906380695,-500.0,0.00031506,120]
[392750011,1761906380745,-500.0,0.00031506,120]
[392750012,1761906380792,-500.0,0.00031506,120]
[392750013,1761906380835,-500.0,0.00031506,120]
[392750014,1761906380880,-500.0,0.00031506,120]
[392750015,1761906380926,-500.0,0.00031506,120]
[392750016,1761906380970,-500.0,0.00031506,120]
[392750017,1761906381014,-500.0,0.00031506,120]
[392750018,1761906381057,-500.0,0.00031506,120]
[392750019,1761906381100,-193.17651059,0.00031506,120]
[392750020,1761906381144,-500.0,0.00031506,120]
[392750021,1761906381190,-500.0,0.00031506,120]
[392750022,1761906381237,-500.0,0.00031506,120]
[392750023,1761906381284,-288.34145332,0.00031506,120]
[392750024,1761906381331,-500.0,0.00031506,120]
[392750025,1761906381378,-500.0,0.00031506,120]
[392750026,1761906381428,-500.0,0.00031506,120]
[392750027,1761906381642,-500.0,0.00031506,120]
[392750028,1761906381695,-500.0,0.00031506,120]
[392750029,1761906381747,-500.0,0.00031506,120]
[392750030,1761906381795,-1000.0,0.00031506,120]
[392750031,1761906413891,5000.00538472,0.000162,5]
[392750037,1761906501259,-221641.93342361,0.00037319,90]
[392750038,1761906501310,-112869.0,0.00037319,30]
[392750039,1761906501653,-25380.13256703,0.00037319,120]
[392750040,1761906501703,-10042.92274989,0.00037319,120]
[392750041,1761906501759,-36580.28618355,0.00037319,120]
[392750042,1761906501811,-12527.67829505,0.00037319,120]
[392750043,1761906501859,-59625.69527511,0.00037319,120]
[392750044,1761906501906,-21719.78159813,0.00037319,120]
[392750045,1761906501952,-4177.70903889,0.00037319,60]
[392750046,1761906502000,-500.0,0.00037319,120]
[392750047,1761906502050,-500.0,0.00037319,120]
[392750048,1761906502102,-500.0,0.00037319,120]
[392750049,1761906502153,-500.0,0.00037319,120]
[392750050,1761906502205,-500.0,0.00037319,120]
[392750051,1761906502254,-500.0,0.00037319,120]
[392750052,1761906502300,-500.0,0.00037319,120]
[392750053,1761906502347,-429.90930187,0.00037319,120]
[392750054,1761906502392,-184.77473703,0.00037319,60]
[392750055,1761906502436,-170.65334,0.00037319,60]
[392750056,1761906502479,-170.65334,0.00037319,60]
[392750057,1761906502528,-10000.0,0.00037319,120]
[392750058,1761906502579,-10000.0,0.00037319,90]
[392750059,1761906502626,-10000.0,0.00037319,60]
[392750060,1761906502671,-10000.0,0.00037319,30]
[392750061,1761906502714,-150.0,0.00037319,120]
[392750062,1761906502757,-150.0,0.00037319,120]
[392750063,1761906502804,-150.0,0.00037319,120]
[392750064,1761906502847,-150.0,0.00037319,120]
[392750065,1761906502891,-150.0,0.00037319,120]
[392750066,1761906502935,-150.0,0.00037319,120]
[392750067,1761906502984,-150.0,0.00037319,120]
[392750068,1761906503031,-150.0,0.00037319,120]
[392750069,1761906503075,-150.0,0.00037319,120]
[392750070,1761906503121,-150.0,0.00037319,120]
[392750071,1761906503167,-150.0,0.00037319,120]
[392750072,1761906503214,-150.0,0.00037319,120]
[392750073,1761906503262,-150.0,0.00037319,120]
[392750074,1761906503308,-150.0,0.00037319,120]
[392750075,1761906503353,-150.0,0.00037319,120]
[392750076,1761906503403,-150.0,0.00037319,120]
[392750077,1761906503452,-150.0,0.00037319,120]
[392750078,1761906503500,-150.0,0.00037319,120]
[392750079,1761906503548,-150.0,0.00037319,120]
[392750080,1761906503596,-150.0,0.00037319,120]
[392750081,1761906503643,-165.14797664,0.00037319,120]
[392750082,1761906503695,-228.99157052,0.00037319,90]
[392750083,1761906503745,-180.822542,0.00037319,120]
[392750084,1761906503801,-976.0,0.00037319,30]
[392750085,1761906503851,-5000.0,0.00037319,30]
[392750086,1761906503900,-839.80819,0.00037319,60]
[392750087,1761906503952,-839.80819,0.00037319,60]
[392750088,1761906504008,-839.80819,0.00037319,60]
[392750089,1761906504069,-839.80819,0.00037319,60]
[392750090,1761906504123,-839.80819,0.00037319,60]
[392750091,1761906504185,-50000.0,0.00037319,30]
[392750092,1761906504241,-2168067.0,0.00037319,90]
[392750093,1761906504292,-2000000.0,0.00037319,60]
[392750094,1761906504340,-36718.63,0.00037319,60]
[392750095,1761906504384,-110646.9354189,0.00037319,120]
[392750096,1761906504430,-71796.30169178,0.00037319,30]
[392750099,1761906508578,-117853.89830822,0.00037319,30]
[392750100,1761906508631,-153.34909229,0.00037319,120]
[392750101,1761906508679,-4316.94803643,0.00037319,47]
[392750102,1761906508729,-185.89,0.00037319,30]
[392750103,1761906508778,-224000.0,0.00037319,120]
[392750105,1761906508825,-3313.0,0.00037319,30]
[392750106,1761906508872,-200.0,0.00037319,30]
[392750107,1761906509156,-300.0,0.00037319,30]
[392750108,1761906509204,-534.53824367,0.00037319,30]
[392750109,1761906509253,-739.26680027,0.00037319,30]
[392750110,1761906509300,-916.59572749,0.00037319,30]
[392750111,1761906509345,-847.2106162,0.00037319,30]
[392750112,1761906509388,-773.31235434,0.00037319,30]
[392750113,1761906509430,-829.72712605,0.00037319,30]
[392750114,1761906509486,-897.62310249,0.00037319,30]
[392750115,1761906509537,-906.39584367,0.00037319,30]
[392750116,1761906509584,-976.31663537,0.00037319,30]
[392750117,1761906509631,-1008.78051472,0.00037319,30]
[392750118,1761906509677,-618.86589561,0.00037319,30]
[392750119,1761906509727,-994.70987487,0.00037319,30]
[392750120,1761906509776,-1061.86186791,0.00037319,30]
[392750121,1761906509822,-3242.56803191,0.00037319,30]
[392750122,1761906509867,-997.0,0.00037319,30]
[392750123,1761906509915,-1045.65420303,0.00037319,30]
[392750124,1761906509964,-927.37778401,0.00037319,30]
[392750125,1761906510012,-644.72218961,0.00037319,30]
[392750126,1761906510058,-957.91385804,0.00037319,30]
[392750127,1761906510101,-1088.78825308,0.00037319,30]
[392750128,1761906510142,-477.84777053,0.00037319,30]
[392750129,1761906510184,-3261.124418,0.00037319,30]
[392750130,1761906510226,-1850.76286141,0.00037319,30]
[392750131,1761906510272,-562.09146724,0.00037319,30]
[392750132,1761906510320,-662.91443575,0.00037319,30]
[392750133,1761906510367,-500.0,0.00037319,120]
[392750134,1761906510408,-500.0,0.00037319,120]
[392750135,1761906510447,-246.31738941,0.00037319,120]
[392750136,1761906510488,-500.0,0.00037319,120]
[392750137,1761906510528,-423.47157748,0.00037319,120]
[392750138,1761906510569,-183.65905915,0.00037319,60]
[392750139,1761906510609,-500.0,0.00037319,120]
[392750140,1761906510647,-528.74910847,0.00037319,120]
[392750141,1761906510685,-168.63501678,0.00037319,91]
[392750142,1761906510734,-862.97725874,0.00037319,30]
[392750143,1761906510774,-1215.12060535,0.00037319,30]
[392750144,1761906510814,-994.15384086,0.00037319,30]
[392750145,1761906510852,-226.77875533,0.00037319,30]
[392750146,1761906510892,-184.04815625,0.00037319,30]
[392750147,1761906510935,-9179.31,0.00037319,30]
[392750148,1761906510980,-154.2784284,0.00037319,120]
[392750149,1761906511026,-172.63263909,0.00037319,30]
[392750150,1761906511069,-166.81299306,0.00037319,120]
[392750151,1761906511109,-2026.74880236,0.00037319,30]
[392750152,1761906511148,-1555.529845,0.00037319,30]
[392750153,1761906511186,-400.71474805,0.00037319,60]
[392750154,1761906511223,-1406.84015155,0.00037319,30]
[392750155,1761906511262,-10000.0,0.00037319,30]
[392750156,1761906511302,-388893.86022083,0.00037319,120]
[392750157,1761906511344,-30278.73765228,0.00037319,120]
[392750158,1761906511383,-12593.0,0.00037319,30]
[392750159,1761906511422,-40101.22,0.00037319,30]
[392750160,1761906511464,-187313.05983608,0.00037319,30]
[392750161,1761906511508,-11702.13305925,0.00037319,30]
[392750163,1761906511552,-148670.49566797,0.00037319,30]
[392750164,1761906511599,-6303.54076819,0.00037319,30]
[392750165,1761906511647,-14597.2997246,0.00037319,30]
[392750166,1761906511695,-738701.3362403,0.00037319,30]
[392750167,1761906511742,-2000.0,0.00037319,120]
[392750168,1761906511784,-500.0,0.00037319,120]
[392750169,1761906511825,-500.0,0.00037319,120]
[392750170,1761906511866,-454.27651644,0.00037319,120]
[392750171,1761906511908,-1890.48,0.00037319,31]
[392750172,1761906511948,-5050.0,0.00037319,36]
[392750173,1761906511988,-215.2,0.00037319,30]
[392750174,1761906512028,-3000.0,0.00037319,120]
[392750175,1761906512068,-321.2230344,0.00037319,30]
[392750176,1761906512108,-181.11551973,0.00037319,120]
[392750177,1761906512149,-500.0,0.00037319,120]
[392750178,1761906512189,-399.30611173,0.00037319,120]
[392750179,1761906512228,-377.0,0.00037319,120]
[392750180,1761906512270,-1580.699279,0.00037319,120]
[392750181,1761906512312,-8430.0,0.00037319,120]
[392750182,1761906512355,-25370.84824298,0.00037319,30]
[392750183,1761906512395,-744.88722761,0.00037319,90]
[392750184,1761906512436,-452.74634204,0.00037319,120]
[392750185,1761906512479,-252.04769835,0.00037319,120]
[392750186,1761906512523,-154.19019555,0.00037319,120]
[392750187,1761906512567,-296.08530834,0.00037319,30]
[392750188,1761906512610,-161.32505751,0.00037319,120]
[392750189,1761906512653,-183.18469741,0.00037319,120]
[392750190,1761906512703,-910.37146455,0.00037319,120]
[392750191,1761906512751,-196.319815,0.00037319,90]
[392750192,1761906512795,-456.82175016,0.00037319,120]
[392750193,1761906512841,-602.93648174,0.00037319,120]
[392750194,1761906512884,-736.15095244,0.00037319,30]
[392750195,1761906512931,-861.39882046,0.00037319,120]
[392750196,1761906512973,-347.95140968,0.00037319,120]
[392750197,1761906513017,-411.99484695,0.00037319,120]
[392750198,1761906513059,-350.08344797,0.00037319,120]
[392750199,1761906513101,-172.77235737,0.00037319,120]
[392750200,1761906513146,-206.89429109,0.00037319,120]
[392750201,1761906513191,-434.44361754,0.00037319,120]
[392750202,1761906513234,-155.84852043,0.00037319,120]
[392750203,1761906513276,-1982.6546401,0.00037319,60]
[392750204,1761906513319,-819.44922304,0.00037319,120]
[392750205,1761906513369,-306.38344945,0.00037319,120]
[392750206,1761906513415,-460.86355525,0.00037319,120]
[392750207,1761906513460,-422.11154933,0.00037319,120]
[392750208,1761906513504,-262.90229493,0.00037319,60]
[392750209,1761906513549,-191.33466297,0.00037319,30]
[392750210,1761906513777,-455.20414391,0.00037319,120]
[392750211,1761906513822,-608.17928108,0.00037319,120]
[392750212,1761906513870,-24984.0,0.00037319,30]
[392750213,1761906513917,-956.18678254,0.00037319,120]
[392750214,1761906513965,-157.60420539,0.00037319,120]
[392750215,1761906514011,-264.14618172,0.00037319,30]
[392750216,1761906514053,-50000.0,0.00037319,65]
[392750217,1761906514096,-2619.79296072,0.00037319,120]
[392750218,1761906514141,-9960.74026288,0.00037319,120]
[392750219,1761906514187,-5533.82375402,0.00037319,60]
[392750220,1761906514236,-500.0,0.00037319,120]
[392750221,1761906514283,-605.24925022,0.00037319,30]
[392750222,1761906514330,-1092.0,0.00037319,30]
[392750223,1761906514375,-1092.0,0.00037319,30]
[392750224,1761906514419,-1092.0,0.00037319,30]
[392750225,1761906514462,-1092.0,0.00037319,30]
[392750226,1761906514506,-1092.0,0.00037319,30]
[392750227,1761906514551,-28829.18247148,0.00037319,60]
[392750228,1761906514596,-50000.0,0.00037319,31]
[392750229,1761906514639,-50000.0,0.00037319,32]
[392750230,1761906514681,-25047.36013793,0.00037319,120]
[392750231,1761906514728,-10000.0,0.00037319,60]
[392750232,1761906514772,-1784.91103132,0.00037319,120]
[392750233,1761906514814,-421.64404429,0.00037319,120]
[392750234,1761906514856,-9410.80514016,0.00037319,120]
[392750235,1761906514898,-173.0,0.00037319,120]
[392750236,1761906514944,-7501.93032002,0.00037319,120]
[392750237,1761906517922,1814.30221104,0.00037319,30]
[392750255,1761906631648,-3983.29275936,0.00013928,2]
[392750256,1761906631808,-285.61724064,0.00013928,2]
[392750257,1761906631818,-1725.70775149,0.0001399,2]
[392750258,1761906631827,-300.0,0.00014024,2]
[392750259,1761906631836,-300.0,0.00014024,2]
[392750260,1761906631845,-1200.0,0.00014024,2]
[392750261,1761906631856,-9245.36,0.00014025,2]
[392750262,1761906631865,-156.23,0.0001421,2]
[392750263,1761906631874,-156.23,0.00014628,2]
[392750264,1761906631884,-1000.0,0.000147,2]
[392750265,1761906631893,-807.73846018,0.0001477,2]
[392750266,1761906631907,-216.9840124,0.00014782,2]
[392750267,1761906631916,-197.0,0.00014807,2]
[392750268,1761906631926,-166.07173137,0.00014849,2]
[392750269,1761906631935,-2204.475,0.00014849,2]
[392750270,1761906631944,-197.0,0.00014857,2]
[392750271,1761906631954,-2500.0,0.0001488,2]
[392750272,1761906631963,-269.40112799,0.00014885,2]
[392750273,1761906631972,-269.40112791,0.00014887,2]
[392750274,1761906631985,-269.40112791,0.00014888,2]
[392750275,1761906631994,-269.40112791,0.0001489,2]
[392750276,1761906632004,-269.40112791,0.00014892,2]
[392750277,1761906632013,-269.40112791,0.00014893,2]
[392750278,1761906632022,-269.40112791,0.00014895,2]
[392750279,1761906632032,-269.40112791,0.00014897,2]
[392750280,1761906632041,-269.40112791,0.00014898,2]
[392750281,1761906632051,-189.28110296,0.000149,2]
[392750282,1761906632061,-361.39099915,0.000149,2]
[392750283,1761906632070,-2905.59124314,0.000149,2]
[392750284,1761906632079,-269.40112791,0.000149,2]
[392750286,1761906632089,-197.0,0.00014918,2]
[392750287,1761906632097,-217.83,0.00014943,2]
[392750288,1761906632106,-150.0,0.00014943,2]
[392750289,1761906632115,-215.18267808,0.00014973,2]
[392750290,1761906632124,-500.0,0.00014973,2]
[392750291,1761906632133,-500.0,0.00014973,2]
[392750292,1761906632141,-586.12429109,0.00014973,2]